bitfinex-derivatives/quotes_SOLF0:USTF0_20260108
["timestamp","ask_amount","ask_price","bid_price","bid_amount"]
[1767854704428,6.95273151,135.48,135.43,0.04882335]
[1767854704628,5.78531693,135.47,135.43,0.04882335]
[1767854704829,5.78531693,135.46,135.43,0.04882335]
[1767854705028,6.95273151,135.48,135.43,0.04882335]
[1767854705226,5.78358043,135.47,135.43,0.04882335]
[1767854705430,5.78358043,135.46,135.43,0.04882335]
[1767854705632,0.30143151,135.48,135.43,0.04882335]
[1767854705930,5.78330455,135.47,135.43,0.04882335]
[1767854706230,0.30143151,135.48,135.43,0.04882335]
[1767854706432,5.78479514,135.47,135.43,0.04882335]
[1767854706730,0.30143151,135.48,135.43,0.04882335]
[1767854706927,5.78518155,135.47,135.43,0.04882335]
[1767854707124,0.30143151,135.48,135.43,0.04882335]
[1767854707321,5.78562836,135.47,135.43,0.04882335]
[1767854707533,6.96630159,135.5,135.43,0.04882335]
[1767854707723,5.78527214,135.49,135.43,0.04882335]
[1767854707933,5.78527214,135.48,135.43,0.04882335]
[1767854708134,5.78527214,135.47,135.43,0.04882335]
[1767854708431,6.96630159,135.5,135.43,0.04882335]
[1767854708631,6.10222386,135.49,135.43,6.70202335]
[1767854708834,5.78622227,135.48,135.43,6.70202335]
[1767854709629,0.31600159,135.51,135.43,6.70202335]
[1767854709833,6.10354133,135.5,135.43,6.70202335]
[1767854710139,5.78753974,135.49,135.43,6.70202335]
[1767854710340,5.78753974,135.48,135.44,6.6527]
[1767854710539,0.31600159,135.5,135.44,6.6527]
[1767854710840,0.31600159,135.5,135.4,106.4245315]
[1767854710841,0.31600159,135.48,135.42,6.6533]
[1767854711040,5.78857827,135.47,135.42,6.6533]
[1767854711235,0.36650629,135.48,135.42,6.6533]
[1767854711433,5.78854945,135.47,135.42,6.6533]
[1767854711736,5.78792899,135.46,135.42,6.6533]
[1767854712039,0.36650629,135.48,135.42,6.6533]
[1767854712240,5.78798388,135.47,135.42,6.6533]
[1767854712442,5.78798388,135.46,135.42,6.6533]
[1767854712641,0.36650629,135.48,135.42,6.6533]
[1767854712841,5.78822532,135.47,135.42,6.6533]
[1767854713043,5.78822532,135.46,135.42,6.6533]
[1767854713241,0.36650629,135.48,135.42,6.6533]
[1767854713442,5.78365623,135.47,135.42,6.6533]
[1767854713640,5.78365623,135.46,135.42,6.6533]
[1767854713939,0.36650629,135.48,135.42,6.6533]
[1767854714242,5.78366602,135.47,135.42,6.6533]
[1767854714442,6.602e-05,135.46,135.4,103.5188]
[1767854714643,0.36650629,135.48,135.4,103.5188]
[1767854714945,0.31600159,135.48,135.4,103.5188]
[1767854715545,0.31600159,135.48,135.4,106.4272315]
[1767854715840,0.31600159,135.48,135.43,6.6528]
[1767854717950,0.31600159,135.48,135.44,0.05169948]
[1767854724356,6.96590159,135.5,135.44,0.05169948]
[1767854724548,5.38499381,135.49,135.44,0.05169948]
[1767854724856,0.31600159,135.49,135.44,0.05169948]
[1767854725452,0.31600159,135.51,135.44,1.91458752]
[1767854725654,0.31600159,135.53,135.46,1.86288804]
[1767854726257,0.31600159,135.53,135.47,6.6512]
[1767854726459,5.72296474,135.52,135.46,1.86288804]
[1767854726759,5.72296474,135.51,135.48,0.04779835]
[1767854726951,5.7229265,135.5,135.48,0.04779835]
[1767854727154,0.31600159,135.52,135.45,87.24]
[1767854727352,6.08768077,135.51,135.45,87.24]
[1767854727556,5.72102457,135.5,135.45,87.24]
[1767854727758,0.3666562,135.51,135.45,93.8923]
[1767854727962,5.72100773,135.5,135.45,87.24]
[1767854728160,0.3666562,135.51,135.45,87.24]
[1767854728354,5.72022405,135.5,135.45,87.24]
[1767854728554,0.3666562,135.51,135.45,87.24]
[1767854728750,5.72022073,135.5,135.45,87.24]
[1767854728954,0.05065461,135.51,135.47,6.6513]
[1767854729851,0.05065461,135.51,135.48,6.6507]
[1767854730158,0.31600159,135.55,135.48,0.05056985]
[1767854730360,0.31600159,135.53,135.48,0.05056985]
[1767854730559,5.71770232,135.52,135.46,1.86288804]
[1767854730858,0.31600159,135.53,135.46,1.86288804]
[1767854731060,5.71731485,135.52,135.46,1.86288804]
[1767854731352,0.31600159,135.53,135.46,1.86288804]
[1767854731553,5.71543142,135.52,135.47,6.6513]
[1767854731760,0.31600159,135.53,135.47,6.6513]
[1767854731960,5.71543142,135.52,135.47,6.6513]
[1767854732160,0.31600159,135.53,135.47,6.6513]
[1767854732360,5.71438617,135.52,135.47,6.6513]
[1767854732660,0.31600159,135.53,135.47,6.6513]
[1767854732862,0.31600159,135.53,135.48,6.6508]
[1767854733664,0.31600159,135.53,135.49,0.05175528]
[1767854734967,6.6472,135.56,135.49,0.05175528]
[1767854735268,6.01910016,135.55,135.49,0.05175528]
[1767854735462,5.71189903,135.54,135.49,0.05175528]
[1767854735664,0.30720113,135.55,135.49,0.05175528]
[1767854735857,5.71083257,135.54,135.49,0.05175528]
[1767854736056,0.30720113,135.55,135.49,0.05175528]
[1767854736270,5.70884843,135.54,135.49,0.05175528]
[1767854736572,0.30720113,135.55,135.49,0.05175528]
[1767854736873,5.7088609,135.54,135.49,0.05175528]
[1767854737068,0.30720113,135.55,135.49,6.70205528]
[1767854737263,5.70707186,135.54,135.49,6.70205528]
[1767854737455,0.30720113,135.55,135.49,6.70205528]
[1767854737664,5.70707186,135.54,135.49,6.70205528]
[1767854737863,0.30720113,135.55,135.49,6.70205528]
[1767854738063,5.70705256,135.54,135.49,6.70205528]
[1767854738262,0.30720113,135.55,135.49,6.70205528]
[1767854738468,5.70540543,135.54,135.49,0.05175528]
[1767854738667,1.86288804,135.57,135.49,0.05175528]
[1767854738668,6.01203629,135.53,135.49,0.05175528]
[1767854738976,5.70488227,135.52,135.49,0.05175528]
[1767854739161,0.30720113,135.53,135.49,0.05175528]
[1767854739365,5.70426273,135.52,135.49,0.05175528]
[1767854739575,0.30720113,135.53,135.49,0.05175528]
[1767854745381,5.69463347,135.52,135.49,0.05175528]
[1767854745577,0.30720113,135.53,135.49,0.05175528]
[1767854745879,5.69462569,135.52,135.49,0.05175528]
[1767854746181,0.30720113,135.53,135.49,0.05175528]
[1767854746378,5.69548397,135.52,135.49,0.05175528]
[1767854746579,0.30720113,135.53,135.49,0.05175528]
[1767854746781,5.69548584,135.52,135.49,0.05175528]
[1767854746979,0.30720113,135.53,135.49,0.05175528]
[1767854747181,5.69509171,135.52,135.49,0.05175528]
[1767854747482,0.30720113,135.53,135.49,0.05175528]
[1767854747682,5.69513235,135.52,135.49,0.05175528]
[1767854747984,0.30720113,135.51,135.45,93.8726]
[1767854752180,0.30720113,135.51,135.45,95.73548804]
[1767854753180,0.30720113,135.51,135.45,93.8726]
[1767854756383,5.69721421,135.5,135.45,93.8726]
[1767854756584,0.30720113,135.51,135.45,93.8726]
[1767854756778,5.69792557,135.5,135.45,93.8726]
[1767854756986,0.30720113,135.51,135.45,93.8726]
[1767854757294,0.05240686,135.49,135.45,93.8726]
[1767854757788,0.30720113,135.53,135.46,8.51518804]
[1767854757987,5.69957841,135.52,135.46,8.51518804]
[1767854758182,5.69957841,135.51,135.46,8.56411778]
[1767854758390,0.30720113,135.53,135.46,8.56411778]
[1767854758585,5.70067458,135.52,135.46,8.56411778]
[1767854758785,5.70067458,135.51,135.47,6.6519]
[1767854758992,0.30720113,135.55,135.48,1.86288804]
[1767854759289,6.00779511,135.54,135.48,1.86288804]
[1767854759484,5.70059398,135.53,135.48,1.86288804]
[1767854759884,5.70059398,135.53,135.5,0.05147248]
[1767854760490,0.30720113,135.56,135.5,1.91436052]
[1767854760784,5.70347933,135.55,135.5,1.91436052]
[1767854760991,5.65295866,135.54,135.5,0.05147248]
[1767854761189,0.30720113,135.56,135.5,0.05147248]
[1767854761890,5.66578426,135.55,135.5,0.05147248]
[1767854762190,0.30720113,135.55,135.5,0.05147248]
[1767854764092,1.86288804,135.58,135.5,0.05147248]
[1767854764093,5.69001213,135.54,135.5,0.05147248]
[1767854764290,0.33045851,135.54,135.5,0.05147248]
[1767854764686,0.33045851,135.52,135.47,93.8717]
[1767854765688,0.33045851,135.52,135.47,6.6517]
[1767854766894,0.05274101,135.53,135.47,6.6517]
[1767854767095,0.05274101,135.53,135.48,6.6515]
[1767854771692,0.05274101,135.53,135.5,6.6503]
[1767854771897,0.33045851,135.59,135.51,87.22]
[1767854772194,0.33045851,135.59,135.5,89.08288804]
[1767854772887,6.97765851,135.57,135.5,87.22]
[1767854773089,0.33045851,135.56,135.53,0.04896837]
[1767854783007,0.38073056,135.56,135.5,93.8702]
[1767854785900,0.38073056,135.56,135.51,6.6499]
[1767854792111,0.32293892,135.55,135.5,87.22]
[1767854792712,0.32293892,135.55,135.47,87.2]
[1767854792905,5.94503923,135.54,135.47,87.2]
[1767854793207,0.32293892,135.54,135.47,87.2]
[1767854793708,0.04804669,135.52,135.48,6.6514]
[1767854804016,0.04804669,135.52,135.49,6.6509]
[1767854804527,0.04804669,135.52,135.47,87.2]
[1767854804723,0.04804669,135.52,135.5,6.6505]
[1767854804926,0.32293892,135.58,135.5,87.2]
[1767854805128,5.673867,135.57,135.5,87.2]
[1767854805329,5.673867,135.56,135.5,87.2]
[1767854805522,5.673867,135.55,135.5,87.2]
[1767854805723,0.32293892,135.58,135.5,87.2]
[1767854806029,5.67402071,135.57,135.5,87.2]
[1767854806229,5.67402071,135.56,135.53,6.69894704]
[1767854806431,0.32293892,135.58,135.53,6.69894704]
[1767854806728,5.67408104,135.57,135.53,6.69894704]
[1767854806931,5.67408104,135.56,135.53,6.69894704]
[1767854807120,0.32293892,135.58,135.53,6.69894704]
[1767854807321,5.67405236,135.57,135.53,6.69894704]
[1767854807521,5.67405236,135.56,135.53,6.69894704]
[1767854807732,0.32293892,135.58,135.53,6.69894704]
[1767854808029,5.67384641,135.57,135.53,6.69894704]
[1767854808221,5.67384641,135.56,135.53,6.69894704]
[1767854808422,0.32293892,135.58,135.53,6.69894704]
[1767854808626,5.6733322,135.57,135.53,6.69894704]
[1767854808826,5.6733322,135.56,135.53,6.69894704]
[1767854809030,0.32293892,135.58,135.53,6.69894704]
[1767854809231,0.32293892,135.58,135.53,0.04994704]
[1767854809232,0.32293892,135.56,135.53,0.04994704]
[1767854809529,5.99625753,135.55,135.51,6.6499]
[1767854809729,5.67331861,135.54,135.51,6.6499]
[1767854809933,0.32293892,135.55,135.51,6.6499]
[1767854810135,5.67233679,135.54,135.51,6.6499]
[1767854810331,0.32293892,135.55,135.51,6.6499]
[1767854810534,5.67309373,135.54,135.51,6.6499]
[1767854810729,0.32293892,135.55,135.51,6.6499]
[1767854810929,5.67310408,135.54,135.51,6.6499]
[1767854811131,0.05136519,135.54,135.51,6.6499]
[1767854812533,0.32293892,135.57,135.51,0.05376055]
[1767854812734,5.67593414,135.56,135.51,0.05376055]
[1767854812937,5.67593414,135.56,135.5,87.2]
[1767854812938,5.67593414,135.55,135.5,87.2]
[1767854813237,0.32293892,135.57,135.5,87.2]
[1767854813534,5.67661881,135.56,135.5,87.2]
[1767854813727,5.67661881,135.55,135.5,87.2]
[1767854813932,0.32293892,135.59,135.52,0.05411132]
[1767854814132,5.67736098,135.58,135.53,87.2]
[1767854814338,5.67736098,135.58,135.52,0.05411132]
[1767854814339,5.67736098,135.57,135.51,103.4421]
[1767854814534,0.32293892,135.59,135.53,87.2]
[1767854814845,5.67693099,135.58,135.54,6.69615912]
[1767854815030,5.67693099,135.57,135.54,6.69615912]
[1767854815225,0.32293892,135.59,135.54,0.04785912]
[1767854815429,5.6776233,135.58,135.54,0.04785912]
[1767854815635,5.6776233,135.57,135.54,0.04785912]
[1767854815836,0.32293892,135.59,135.54,0.04785912]
[1767854816039,6.00105709,135.58,135.54,0.04785912]
[1767854816229,5.67811817,135.57,135.54,0.04785912]
[1767854816435,5.67811817,135.56,135.54,0.04785912]
[1767854816737,0.32293892,135.58,135.54,0.04785912]
[1767854817034,6.00170486,135.57,135.54,0.04785912]
[1767854817240,5.67876594,135.56,135.51,87.2]
[1767854818542,5.67876594,135.56,135.51,93.8499]
[1767854819234,5.67876594,135.55,135.51,93.8499]
[1767854819442,5.67876594,135.54,135.51,93.8499]
[1767854819740,0.37394906,135.57,135.51,93.8499]
[1767854819944,5.68236282,135.56,135.51,93.8499]
[1767854820135,0.32293892,135.57,135.51,93.8499]
[1767854820136,5.68236282,135.55,135.51,93.8499]
[1767854820335,5.68236282,135.54,135.51,93.8499]
[1767854820537,0.04955695,135.55,135.51,93.8499]
[1767854820735,5.68221445,135.54,135.51,93.8499]
[1767854820939,0.04955695,135.55,135.51,93.8499]
[1767854821135,5.6826333,135.54,135.51,93.8499]
[1767854821338,0.37249587,135.55,135.51,87.2]
[1767854821643,5.68195971,135.54,135.49,93.8506]
[1767854821845,5.68195971,135.53,135.49,93.8506]
[1767854822038,5.68195971,135.52,135.49,93.8506]
[1767854822343,0.37249587,135.55,135.49,93.8506]
[1767854822543,5.68332828,135.54,135.49,93.8506]
[1767854822742,5.68332828,135.53,135.49,93.8506]
[1767854822943,5.68332828,135.52,135.49,93.8506]
[1767854823138,0.32293892,135.55,135.49,93.8506]
[1767854823433,5.68310855,135.54,135.49,93.8506]
[1767854823636,5.68310855,135.53,135.49,93.8506]
[1767854823838,5.68310855,135.52,135.49,93.8506]
[1767854824036,0.32293892,135.55,135.49,93.8506]
[1767854824237,5.68301554,135.54,135.49,93.8506]
[1767854824437,5.68301554,135.53,135.49,93.8506]
[1767854824738,5.68301554,135.53,135.47,2.9072075]
[1767854824739,5.98979658,135.52,135.43,103.5024]
[1767854824938,5.68301554,135.51,135.45,87.2]
[1767854825144,5.68301554,135.5,135.45,87.2]
[1767854825339,0.35444013,135.52,135.46,6.6524]
[1767854825538,5.67939892,135.51,135.46,6.6524]
[1767854825735,5.67939892,135.5,135.46,6.6524]
[1767854825935,0.047032,135.5,135.46,6.6524]
[1767854827545,5.67774117,135.49,135.46,6.6524]
[1767854827752,0.047032,135.5,135.46,6.6524]
[1767854827931,5.67784853,135.49,135.45,87.2]
[1767854828241,5.67530564,135.48,135.45,87.2]
[1767854828437,0.35381304,135.5,135.43,87.2]
[1767854828637,5.98196446,135.49,135.43,87.2]
[1767854828837,5.67518342,135.48,135.43,87.2]
[1767854829038,8.342e-05,135.47,135.43,93.8539]
[1767854829344,0.30678104,135.51,135.41,103.5206]
[1767854829645,0.30678104,135.51,135.42,87.22]
[1767854830640,0.30678104,135.51,135.44,6.6534]
[1767854831142,6.95688104,135.51,135.44,6.6534]
[1767854831342,0.30678104,135.5,135.44,6.6534]
[1767854834845,0.30678104,135.5,135.42,87.22]
[1767854835146,0.30678104,135.54,135.44,103.4986]
[1767854835446,116.6722,135.6,135.49,103.4603]
[1767854835447,0.30678104,135.58,135.49,103.4603]
[1767854835645,0.30678104,135.58,135.5,87.22]
[1767854835833,14.57210915,135.64,135.51,103.4436]
[1767854835834,0.30678104,135.6,135.51,103.4436]
[1767854836034,0.30678104,135.63,135.54,103.4216]
[1767854836239,0.30678104,135.63,135.55,87.22]
[1767854837546,0.30678104,135.62,135.55,87.22]
[1767854839647,0.30678104,135.61,135.55,87.22]
[1767854841052,5.57987066,135.6,135.55,87.22]
[1767854841252,0.30678104,135.61,135.55,87.22]
[1767854841551,5.57890822,135.6,135.55,87.22]
[1767854841748,0.30678104,135.61,135.55,87.22]
[1767854841944,5.57852371,135.6,135.55,87.22]
[1767854842150,0.30678104,135.61,135.55,87.22]
[1767854842346,5.57815017,135.6,135.55,87.22]
[1767854842550,0.30678104,135.61,135.55,87.22]
[1767854842739,5.57842864,135.6,135.55,87.22]
[1767854842943,0.30678104,135.61,135.55,87.22]
[1767854843146,5.57840383,135.6,135.55,87.22]
[1767854843345,0.30678104,135.61,135.55,87.22]
[1767854843645,5.57765327,135.6,135.55,87.22]
[1767854843845,0.30678104,135.61,135.55,87.22]
[1767854844142,0.30678104,135.59,135.51,8.50969146]
[1767854844347,0.30678104,135.59,135.51,1.85989146]
[1767854844548,0.30678104,135.57,135.49,89.05989146]
[1767854844744,0.30678104,135.57,135.49,95.71049146]
[1767854849958,0.30678104,135.57,135.51,1.85989146]
[1767854850149,6.6467,135.58,135.51,1.85989146]
[1767854850348,6.95348104,135.58,135.51,1.85989146]
[1767854850951,0.30678104,135.58,135.51,8.50979146]
[1767854854365,5.57789592,135.57,135.51,8.50979146]
[1767854854555,0.30678104,135.58,135.51,8.50979146]
[1767854854757,5.57789592,135.57,135.51,8.50979146]
[1767854855067,5.57705474,135.56,135.49,95.71049146]
[1767854855253,0.30744176,135.57,135.49,95.71049146]
[1767854855560,5.57703712,135.56,135.49,95.71049146]
[1767854855762,0.30744176,135.57,135.49,95.71049146]
[1767854855963,5.57732037,135.56,135.49,95.71049146]
[1767854856168,0.30744176,135.57,135.49,95.71049146]
[1767854856457,5.57732933,135.56,135.49,95.71049146]
[1767854856660,6.95454176,135.57,135.49,95.71049146]
[1767854856861,5.5773397,135.56,135.49,95.71049146]
[1767854857055,6.95454176,135.57,135.49,95.71049146]
[1767854857255,5.57732933,135.56,135.49,95.71049146]
[1767854857456,6.95454176,135.57,135.49,95.71049146]
[1767854857666,5.57732925,135.56,135.49,95.71049146]
[1767854857855,6.95454176,135.57,135.49,95.71049146]
[1767854858155,5.57732925,135.56,135.49,95.71049146]
[1767854858461,6.95454176,135.57,135.49,93.8506]
[1767854858666,5.57735325,135.56,135.49,95.71049146]
[1767854858856,6.95454176,135.57,135.49,95.71049146]
[1767854859056,5.57736361,135.56,135.49,95.71049146]
[1767854859358,6.95454176,135.57,135.49,95.71049146]
[1767854859557,5.5777032,135.56,135.49,95.71049146]
[1767854859761,6.95454176,135.57,135.49,95.71049146]
[1767854859961,5.5777032,135.56,135.49,95.71049146]
[1767854860162,6.95454176,135.57,135.49,95.71049146]
[1767854860359,5.57805739,135.56,135.49,95.71049146]
[1767854860568,6.95454176,135.57,135.49,95.71049146]
[1767854860767,5.57805739,135.56,135.49,95.71049146]
[1767854860961,6.95454176,135.57,135.49,95.71049146]
[1767854861163,5.57805361,135.56,135.49,95.71049146]
[1767854861360,6.95454176,135.57,135.49,95.71049146]
[1767854861558,5.57826916,135.56,135.49,95.71049146]
[1767854861759,6.95454176,135.57,135.49,95.71049146]
[1767854861958,5.57826916,135.56,135.49,95.71049146]
[1767854862159,6.95454176,135.57,135.49,95.71049146]
[1767854862361,5.57874816,135.56,135.49,95.71049146]
[1767854862560,6.95454176,135.57,135.49,95.71049146]
[1767854862760,5.57831971,135.56,135.49,95.71049146]
[1767854862962,6.95504176,135.56,135.49,95.71049146]
[1767854864762,0.05390261,135.54,135.49,95.71049146]
[1767854865373,0.05390261,135.54,135.49,93.8506]
[1767854874878,0.05390261,135.54,135.49,87.2]
[1767854875084,0.05390261,135.54,135.48,1.85989146]
[1767854875085,5.57005163,135.53,135.48,1.85989146]
[1767854875380,0.05390261,135.54,135.48,1.85989146]
[1767854875681,5.57150629,135.53,135.48,8.51139146]
[1767854875869,0.05390261,135.54,135.48,8.51139146]
[1767854876068,5.57148381,135.53,135.48,8.51139146]
[1767854876273,0.05390261,135.54,135.48,8.51139146]
[1767854876473,5.57301086,135.53,135.48,6.6515]
[1767854876678,0.05390261,135.54,135.48,6.6515]
[1767854876878,5.5730287,135.53,135.47,87.2]
[1767854877176,5.5748707,135.52,135.42,103.5105]
[1767854877376,5.88172163,135.51,135.44,1.85989146]
[1767854877572,0.30744176,135.51,135.44,1.85989146]
[1767854877774,0.30744176,135.51,135.44,8.51329146]
[1767854877969,0.04991945,135.49,135.44,8.51329146]
[1767854879183,0.04991945,135.49,135.43,87.2]
[1767854879385,5.57607887,135.48,135.43,87.2]
[1767854879580,0.04991945,135.49,135.43,87.2]
[1767854879791,5.57609033,135.48,135.41,1.85989146]
[1767854880091,5.57609033,135.47,135.41,1.85989146]
[1767854880285,7.00846121,135.49,135.41,1.85989146]
[1767854880286,6.95854176,135.49,135.41,1.85989146]
[1767854880491,5.57688768,135.48,135.41,1.85989146]
[1767854880787,0.30744176,135.48,135.4,89.07989146]
[1767854880988,0.05038732,135.46,135.4,89.07989146]
[1767854881188,0.05038732,135.46,135.42,8.51419146]
[1767854881381,0.30744176,135.5,135.42,8.51419146]
[1767854881586,5.57463957,135.49,135.42,8.5696603]
[1767854881787,5.57463957,135.48,135.42,8.5696603]
[1767854881995,6.95804176,135.5,135.42,8.5696603]
[1767854882292,5.57464644,135.49,135.42,8.5696603]
[1767854882492,6.95804176,135.5,135.42,8.5696603]
[1767854882688,5.57367207,135.49,135.42,8.5696603]
[1767854882889,5.57367207,135.48,135.42,8.5696603]
[1767854883090,6.95804176,135.5,135.42,8.5696603]
[1767854883291,5.5740394,135.49,135.42,8.5696603]
[1767854883486,6.95804176,135.5,135.42,8.5696603]
[1767854883681,5.57193173,135.49,135.42,8.5696603]
[1767854883886,6.95804176,135.5,135.42,8.5696603]
[1767854884093,5.57193173,135.49,135.42,8.5696603]
[1767854884294,0.30744176,135.5,135.43,6.6539]
[1767854884484,5.57063761,135.49,135.43,6.6539]
[1767854884686,0.30744176,135.5,135.43,6.6539]
[1767854884886,5.57064113,135.49,135.43,6.6539]
[1767854885194,0.30744176,135.5,135.45,0.04987363]
[1767854885393,5.56971355,135.49,135.45,0.04987363]
[1767854885593,0.30744176,135.5,135.45,0.04987363]
[1767854885790,5.56971355,135.49,135.45,0.04987363]
[1767854885989,0.30744176,135.5,135.45,0.04987363]
[1767854886197,5.56971355,135.49,135.45,0.04987363]
[1767854886396,0.30744176,135.5,135.45,0.04987363]
[1767854886694,5.5692659,135.49,135.45,0.04987363]
[1767854886895,6.95804176,135.5,135.45,0.04987363]
[1767854887087,1.85989146,135.53,135.45,0.04987363]
[1767854887088,5.88373237,135.49,135.45,0.04987363]
[1767854887292,0.31446647,135.49,135.45,0.04987363]
[1767854888491,5.88269487,135.48,135.43,6.6539]
[1767854888692,0.36381945,135.48,135.43,6.6539]
[1767854889893,0.04935298,135.48,135.43,8.51379146]
[1767854890988,0.04935298,135.48,135.43,6.6539]
[1767854892197,0.36381945,135.48,135.41,8.51459146]
[1767854892590,0.36381945,135.48,135.41,6.6547]
[1767854892890,0.36381945,135.48,135.41,8.51459146]
[1767854894398,0.04935298,135.48,135.41,8.51459146]
[1767854895698,6.70095298,135.48,135.41,6.6547]
[1767854897405,0.04935298,135.48,135.41,6.6547]
[1767854899703,0.31446647,135.47,135.41,6.6547]
[1767854899899,0.31446647,135.47,135.37,213.0022]
[1767854900299,0.31446647,135.47,135.37,125.7422]
[1767854900500,0.31446647,135.47,135.38,87.26]
[1767854901101,0.31446647,135.47,135.41,6.6548]
[1767854901297,0.31446647,135.47,135.41,6.70550624]
[1767854904212,0.31446647,135.49,135.42,6.6543]
[1767854904408,6.96466647,135.51,135.41,0.05070624]
[1767854904608,5.54991301,135.5,135.42,87.26]
[1767854904909,6.96466647,135.51,135.42,87.26]
[1767854905108,5.54991653,135.5,135.45,0.05044085]
[1767854905309,0.31446647,135.51,135.45,0.05044085]
[1767854905509,5.55070506,135.5,135.45,0.05044085]
[1767854905812,0.31446647,135.51,135.45,0.05044085]
[1767854906015,5.5507213,135.5,135.45,0.05044085]
[1767854906216,0.31446647,135.51,135.45,0.05044085]
[1767854906517,5.55160176,135.5,135.45,0.05044085]
[1767854906707,0.31446647,135.51,135.45,0.05044085]
[1767854906907,5.55160176,135.5,135.45,0.05044085]
[1767854907118,0.31446647,135.5,135.45,0.05044085]
[1767854909013,5.55362775,135.49,135.45,0.05044085]
[1767854909210,0.31446647,135.5,135.45,0.05044085]
[1767854910513,6.96516647,135.5,135.45,0.05044085]
[1767854910708,6.96516647,135.5,135.42,93.9141]
[1767854910709,0.31446647,135.48,135.42,87.26]
[1767854913024,0.30308222,135.53,135.42,87.26]
[1767854913212,5.5589069,135.52,135.44,2.91145847]
[1767854913414,5.5589069,135.51,135.44,2.91145847]
[1767854913622,0.30308222,135.53,135.44,2.91145847]
[1767854913925,0.30308222,135.5,135.42,90.17145847]
[1767854915614,6.95388222,135.5,135.42,90.17145847]
[1767854916218,5.56595328,135.49,135.42,90.17145847]
[1767854916418,6.95388222,135.5,135.42,90.17145847]
[1767854916720,5.56626995,135.49,135.42,90.17145847]
[1767854916922,6.95388222,135.5,135.42,90.17145847]
[1767854917124,5.56626617,135.49,135.42,90.17145847]
[1767854917314,6.95388222,135.5,135.42,90.17145847]
[1767854917515,5.56861959,135.49,135.42,90.17145847]
[1767854917814,6.95388222,135.5,135.42,90.17145847]
[1767854918013,5.5686158,135.49,135.42,90.17145847]
[1767854918320,6.95388222,135.5,135.42,90.17145847]
[1767854918521,5.57074066,135.49,135.42,90.17145847]
[1767854918821,6.95388222,135.5,135.42,90.17145847]
[1767854919007,5.57005103,135.49,135.42,90.17145847]
[1767854919211,6.95388222,135.5,135.42,90.17145847]
[1767854919412,5.57324633,135.49,135.42,90.17145847]
[1767854919612,6.95388222,135.5,135.42,90.17145847]
[1767854919808,5.57324633,135.49,135.42,90.17145847]
[1767854920121,6.95388222,135.5,135.42,90.17145847]
[1767854920322,5.57514263,135.49,135.42,90.17145847]
[1767854920522,5.57514263,135.48,135.42,90.17145847]
[1767854920825,6.95388222,135.5,135.42,90.17145847]
[1767854921122,5.57565342,135.49,135.42,90.17145847]
[1767854921317,5.57760876,135.48,135.42,90.17145847]
[1767854921617,6.95388222,135.5,135.42,90.17145847]
[1767854921920,5.57760876,135.49,135.42,90.17145847]
[1767854922121,5.57760876,135.48,135.43,6.6538]
[1767854922322,6.95298222,135.52,135.43,6.6538]
[1767854922521,5.57962681,135.51,135.43,6.6538]
[1767854922721,5.57962681,135.5,135.43,6.6538]
[1767854922915,5.57962681,135.49,135.43,6.6538]
[1767854923125,5.57962681,135.48,135.43,6.6538]
[1767854923427,6.95298222,135.52,135.44,6.6534]
[1767854923619,5.58030216,135.51,135.44,6.6534]
[1767854923814,5.58030216,135.5,135.44,6.6534]
[1767854924013,5.58030216,135.49,135.44,6.6534]
[1767854924214,5.58030216,135.48,135.44,6.6534]
[1767854924520,6.95298222,135.52,135.44,6.6534]
[1767854924720,5.58093847,135.51,135.44,6.6534]
[1767854924922,5.58093847,135.5,135.44,6.6534]
[1767854925123,5.58093847,135.49,135.44,6.6534]
[1767854925324,5.58093847,135.48,135.44,6.6534]
[1767854925524,6.95298222,135.52,135.44,6.6534]
[1767854925726,5.58095148,135.51,135.44,6.6534]
[1767854925932,5.24766711,135.5,135.42,215.87295847]
[1767854926229,6.6491,135.53,135.45,2.91145847]
[1767854926430,6.6491,135.53,135.45,90.15145847]
[1767854927528,6.6491,135.53,135.46,6.6522]
[1767854928829,6.95218222,135.53,135.46,6.6522]
[1767854931132,103.4106,135.56,135.45,87.24]
[1767854931133,6.95258222,135.52,135.45,87.24]
[1767854932532,6.95258222,135.52,135.45,93.8929]
[1767854934041,6.95258222,135.52,135.45,87.24]
[1767854938044,5.55627944,135.51,135.45,87.24]
[1767854938342,5.55627944,135.5,135.45,87.24]
[1767854938539,6.95258222,135.52,135.45,87.24]
[1767854938740,5.55622288,135.51,135.45,87.24]
[1767854939041,5.55622288,135.5,135.45,87.24]
[1767854939244,6.95258222,135.52,135.45,87.24]
[1767854939442,5.55532674,135.51,135.45,87.24]
[1767854939641,5.55532674,135.5,135.45,93.8929]